fUST/lending_fUST_20251215
["ID","MTS","AMOUNT","RATE_DAILY","PERIOD"]
[398513398,1765770190002,150.0,0.00011818,2]
[398513399,1765770191191,-157.42,0.00012144,2]
[398513400,1765770192640,-152.51,0.00012144,2]
[398513401,1765770195898,-153.68,0.00012144,2]
[398513402,1765770199045,-276.78464251,0.00012144,2]
[398513403,1765770201410,-4104.64291726,0.00012144,2]
[398513404,1765770201683,-161.90771007,0.00012154,2]
[398513405,1765770203746,-49.12007149,0.00012154,2]
[398513406,1765770203768,-168.8721681,0.00012166,2]
[398513407,1765770203790,-35.2116692,0.00012234,2]
[398513408,1765770206192,1790.72416548,0.00012144,2]
[398513409,1765770206214,2925.65479905,0.00012144,2]
[398513410,1765770206284,-152.53,0.00012234,2]
[398513411,1765770206467,290.07080589,9.444e-05,2]
[398513412,1765770207127,290.07080589,0.00010945,2]
[398513413,1765770208302,-221.66785547,0.00012234,2]
[398513414,1765770216951,-249.15013523,0.00012234,2]
[398513415,1765770221660,5000.0,0.00012234,2]
[398513416,1765770232488,-300.0,0.00012382,2]
[398513417,1765770232516,-1200.0,0.00012382,2]
[398513418,1765770234285,-300.0,0.00012383,2]
[398513419,1765770237417,-294.01350181,0.00012383,2]
[398513420,1765770239440,-201.62989558,0.00012383,2]
[398513421,1765770240501,-182.27,0.00012383,2]
[398513422,1765770243145,-222.08660261,0.00012383,2]
[398513423,1765770243168,-109.10232643,0.00012383,2]
[398513424,1765770245078,151.93,0.00012,2]
[398513425,1765770245203,-390.89767357,0.00012383,2]
[398513426,1765770245227,-45.01232643,0.00012383,2]
[398513427,1765770245263,5000.0,0.00012382,2]
[398513428,1765770245453,151.93,0.000122,2]
[398513429,1765770247713,-146.20871377,0.00012383,2]
[398513430,1765770247736,-92.08225702,0.00012383,2]
[398513431,1765770248154,-407.91774298,0.00012383,2]
[398513432,1765770248184,-500.0,0.00012383,2]
[398513433,1765770248214,-500.0,0.00012383,2]
[398513434,1765770248247,-500.0,0.00012383,2]
[398513435,1765770248279,-500.0,0.00012383,2]
[398513436,1765770248309,-500.0,0.00012383,2]
[398513437,1765770248342,-500.0,0.00012383,2]
[398513438,1765770248372,-500.0,0.00012383,2]
[398513439,1765770248403,-342.14233355,0.00012383,2]
[398513440,1765770248434,-325.26588148,0.00012383,2]
[398513441,1765770248463,-349.35808398,0.00012383,2]
[398513442,1765770248639,-150.64191602,0.00012383,2]
[398513443,1765770248669,-500.0,0.00012383,2]
[398513444,1765770250042,-216.92385543,0.00012383,2]
[398513445,1765770253182,5000.0,0.00012383,2]
[398513446,1765770260816,150.0,8.663e-05,2]
[398513447,1765770261224,150.0,9.451e-05,2]
[398513448,1765770261619,150.0,0.00010238,2]
[398513449,1765770262081,150.0,0.00011026,2]
[398513450,1765770262548,150.0,0.00011813,2]
[398513451,1765770263904,-68.82641554,0.00012383,2]
[398513452,1765770269340,5000.0,0.00012383,2]
[398513453,1765770277208,4862.35716892,0.00012383,2]
[398513454,1765770277233,137.64283108,0.00012383,2]
[398513456,1765770279838,-300.0,0.00012384,2]
[398513457,1765770279867,-300.0,0.00012384,2]
[398513458,1765770279898,-300.0,0.00012384,2]
[398513459,1765770279927,-300.0,0.00012384,2]
[398513460,1765770279955,-300.0,0.00012384,2]
[398513461,1765770279983,-300.0,0.00012384,2]
[398513462,1765770280010,-300.0,0.00012384,2]
[398513463,1765770280037,-300.0,0.00012384,2]
[398513464,1765770280064,-300.0,0.00012384,2]
[398513465,1765770280091,-300.0,0.00012384,2]
[398513466,1765770280119,-300.0,0.00012384,2]
[398513467,1765770280150,-300.0,0.00012384,2]
[398513468,1765770280179,-300.0,0.00012384,2]
[398513469,1765770280206,-300.0,0.00012384,2]
[398513470,1765770280234,-300.0,0.00012384,2]
[398513471,1765770280262,-400.01,0.00012384,2]
[398513472,1765770280331,-199.99,0.00012384,2]
[398513475,1765770293101,5000.0,0.00012384,2]
[398513476,1765770293263,-196.26551965,0.00012384,2]
[398513477,1765770295796,-366.94088649,0.00012384,2]
[398513478,1765770298437,-206.85224382,0.00012384,2]
[398513479,1765770299886,-349.26394037,0.00012384,2]
[398513480,1765770301916,-349.070555,0.00012384,2]
[398513481,1765770304732,-380.67740967,0.00012384,2]
[398513482,1765770306468,-382.34757164,0.00012384,2]
[398513483,1765770307205,153.95,0.000111,2]
[398513484,1765770307530,300.0,0.00012383,2]
[398513485,1765770307658,153.95,0.000112,2]
[398513486,1765770308010,153.95,0.000114,2]
[398513487,1765770308493,153.95,0.000115,2]
[398513488,1765770308941,153.95,0.000117,2]
[398513489,1765770309323,153.95,0.000118,2]
[398513490,1765770309845,153.95,0.00012,2]
[398513491,1765770310176,153.95,0.000121,2]
[398513492,1765770310536,153.95,0.000123,2]
[398513493,1765770310716,-154.54413787,0.00012384,2]
[398513494,1765770313100,1200.0,0.00012383,2]
[398513495,1765770316182,1714.48,0.00012384,2]
[398513496,1765770316206,3285.52,0.00012384,2]
[398513497,1765770318492,151.0,0.00012384,2]
[398513498,1765770319609,179.36038715,0.00012384,2]
[398513501,1765770331436,150.0,8.669e-05,2]
[398513502,1765770331996,150.0,9.457e-05,2]
[398513505,1765770332861,150.0,0.00010245,2]
[398513506,1765770333745,150.0,0.00011033,2]
[398513507,1765770333881,150.0,0.00011821,2]
[398513509,1765770339433,5000.0,0.00012384,2]
[398513510,1765770340167,-223.91130599,0.00012384,2]
[398513511,1765770343421,-184.89397798,0.00012384,2]
[398513512,1765770344905,-181.56372092,0.00012384,2]
[398513514,1765770346341,-155.53,0.00012384,2]
[398513515,1765770348803,-420.82318598,0.00012384,2]
[398513516,1765770350683,-188.18520846,0.00012384,2]
[398513517,1765770352161,-463.18844256,0.00012384,2]
[398513518,1765770356801,-311.80861911,0.00012384,2]
[398513519,1765770359917,-188.19138089,0.00012384,2]
[398513520,1765770362041,634.12961285,0.00012384,2]
[398513521,1765770362066,4365.87038715,0.00012384,2]
[398513522,1765770363204,-311.81479154,0.00012384,2]
[398513523,1765770365172,-154.5657562,0.00012384,2]
[398513524,1765770367659,-515.61660439,0.00012384,2]
[398513525,1765770368547,153.95,0.000111,2]
[398513526,1765770368903,153.95,0.000114,2]
[398513527,1765770369301,153.95,0.000116,2]
[398513528,1765770369662,153.95,0.000119,2]
[398513529,1765770370010,153.95,0.000122,2]
[398513530,1765770370068,-171.88,0.00012384,2]
[398513531,1765770372088,-227.80245979,0.00012384,2]
[398513532,1765770373516,-157.07141081,0.00012384,2]
[398513533,1765770375683,-300.0,0.00012384,2]
[398513534,1765770378788,-401.8298122,0.00012384,2]
[398513535,1765770381380,-241.18535749,0.00012384,2]
[398513536,1765770385389,4864.38961285,0.00012384,2]
[398513537,1765770385412,135.61038715,0.00012384,2]
[398513538,1765770388726,1000.0,0.00012384,2]
[398513539,1765770389860,1000.0,0.00012384,2]
[398513540,1765770391057,1000.0,0.00012384,2]
[398513541,1765770392296,1000.0,0.00012384,2]
[398513542,1765770393428,1075.63113093,0.00012384,2]
[398513543,1765770393522,1000.0,0.00012384,2]
[398513544,1765770394624,1000.0,0.00012384,2]
[398513545,1765770395858,1000.0,0.00012384,2]
[398513546,1765770396940,1000.0,0.00012384,2]
[398513547,1765770398129,788.76848192,0.00012384,2]
[398513548,1765770398150,211.23151808,0.00012384,2]
[398513549,1765770398198,150.0,8.743e-05,2]
[398513550,1765770398645,150.0,9.538e-05,2]
[398513551,1765770399077,159.45,0.00010332,2]
[398513552,1765770399223,1000.0,0.00012384,2]
[398513553,1765770399580,212.61,0.00011127,2]
[398513554,1765770399895,265.76,0.00011922,2]
[398513555,1765770400506,1000.0,0.00012384,2]
[398513556,1765770401844,1000.0,0.00012384,2]
[398513557,1765770403044,1000.0,0.00012384,2]
[398513558,1765770404215,404.80536867,0.00012384,2]
[398513559,1765770408813,4446.15311325,0.00012384,2]
[398513560,1765770416808,5000.0,0.00012374,2]
[398513561,1765770427010,158.17,0.000111,2]
[398513562,1765770427688,158.17,0.000115,2]
[398513563,1765770427823,158.17,0.000118,2]
[398513564,1765770428123,158.17,0.000122,2]
[398513565,1765770439792,4060.02164114,0.00012374,2]
[398513567,1765770469732,-300.0,0.00012383,2]
[398513568,1765770469759,-602.0,0.00012383,2]
[398513569,1765770473138,150.0,7.189e-05,2]
[398513570,1765770473547,150.0,7.843e-05,2]
[398513571,1765770474059,201.77,8.496e-05,2]
[398513572,1765770474483,269.03,9.15e-05,2]
[398513573,1765770474887,336.28,9.803e-05,2]
[398513574,1765770475326,403.54,0.00010457,2]
[398513575,1765770475767,470.8,0.0001111,2]
[398513576,1765770476159,538.05,0.00011764,2]
[398513577,1765770486942,158.17,0.000111,2]
[398513578,1765770487354,158.17,0.000118,2]
[398513579,1765770497136,-553.84688675,0.00012384,2]
[398513580,1765770504970,438.09532558,0.00012384,2]
[398513581,1765770520841,5000.0,0.00012392,2]
[398513582,1765770543911,5000.0,0.00012392,2]
[398513583,1765770545193,0.01,0.00012,2]
[398513584,1765770545480,158.16,0.00012,2]
[398513585,1765770546970,150.0,8.676e-05,2]
[398513586,1765770547464,150.0,9.465e-05,2]
[398513587,1765770548253,222.97,0.00010254,2]
[398513588,1765770548673,297.3,0.00011043,2]
[398513589,1765770549067,371.62,0.00011831,2]
[398513590,1765770566916,5000.0,0.00012392,2]
[398513591,1765770574932,3649.96,0.00012392,2]
[398513592,1765770574954,1170.34450381,0.00012392,2]
[398513593,1765770591121,5000.0,0.00012392,2]
[398513595,1765770599009,2685.43,0.00012392,2]
[398513596,1765770605136,157.37,0.00012,2]
[398513597,1765770614975,986.86549619,0.00012392,2]
[398513598,1765770615002,4013.13450381,0.00012392,2]
[398513599,1765770623468,3616.32336962,0.00012392,2]
[398513600,1765770623958,-211.66340851,0.0001242,2]
[398513601,1765770626049,150.0,8.787e-05,2]
[398513602,1765770626119,206.62,9.586e-05,2]
[398513603,1765770626529,309.93,0.00010384,2]
[398513604,1765770627026,413.24,0.00011183,2]
[398513605,1765770627445,516.55,0.00011982,2]
[398513654,1765770638236,-290.07080589,0.00012447,2]
[398513656,1765770638247,-72.68182164,0.0001263,2]
[398513661,1765770638287,-407.9032763,0.0001263,2]
[398513663,1765770638299,-204.68248151,0.0001263,2]
[398513665,1765770638308,-1200.0,0.0001263,2]
[398513667,1765770638318,-1388.53445274,0.00012631,2]
[398513669,1765770638329,-23128.14926241,0.00012631,2]
[398513671,1765770638341,-11599.01514702,0.00012631,2]
[398513673,1765770638350,-300.0,0.00012631,2]
[398513675,1765770638360,-300.0,0.00012631,2]
[398513677,1765770638369,-300.0,0.00012631,2]
[398513679,1765770638379,-300.0,0.00012631,2]
[398513681,1765770638389,-300.0,0.00012631,2]
[398513682,1765770638398,-300.0,0.00012631,2]
[398513683,1765770638407,-300.0,0.00012631,2]
[398513684,1765770638416,-300.0,0.00012631,2]
[398513685,1765770638426,-300.0,0.00012631,2]
[398513686,1765770638435,-300.0,0.00012631,2]
[398513687,1765770638445,-300.0,0.00012631,2]
[398513688,1765770638454,-300.0,0.00012631,2]
[398513689,1765770638464,-300.0,0.00012631,2]
[398513690,1765770638473,-300.0,0.00012631,2]
[398513691,1765770638483,-300.0,0.00012631,2]
[398513692,1765770638492,-619.86,0.00012781,2]
[398513693,1765770638502,-180.9764348,0.00012827,2]
[398513694,1765770638511,-600.0,0.00012883,2]
[398513695,1765770638521,-283.59,0.00012902,2]
[398513696,1765770638531,-157.37,0.00013,2]
[398513697,1765770638540,-200.02518968,0.00013272,2]
[398513698,1765770638550,-263.55926491,0.00013273,2]
[398513699,1765770638564,-500.0,0.00013273,2]
[398513700,1765770638574,-500.0,0.00013273,2]
[398513701,1765770638583,-558.07287305,0.00013273,2]
[398513702,1765770638593,-500.0,0.00013273,2]
[398513703,1765770638603,-500.0,0.00013273,2]
[398513704,1765770638614,-500.0,0.00013273,2]
[398513705,1765770638623,-500.0,0.00013273,2]
[398513706,1765770638633,-500.0,0.00013273,2]
[398513707,1765770638643,-502.37398164,0.00013273,2]
[398513708,1765770638652,-500.0,0.00013273,2]
[398513709,1765770638662,-500.0,0.00013273,2]
[398513710,1765770638673,-500.0,0.00013273,2]
[398513711,1765770638682,-500.0,0.00013273,2]
[398513712,1765770638691,-500.0,0.00013273,2]
[398513713,1765770638701,-500.0,0.00013273,2]
[398513714,1765770638710,-500.0,0.00013273,2]
[398513715,1765770638720,-500.0,0.00013273,2]
[398513716,1765770638729,-500.0,0.00013273,2]
[398513717,1765770638739,-246.29125297,0.00013547,2]
[398513718,1765770638748,-723.17,0.0001358,2]
[398513719,1765770638758,-977.273868,0.00013699,2]
[398513720,1765770638768,-500.0,0.00013821,2]
[398513721,1765770638777,-505.6140749,0.00013821,2]
[398513722,1765770638787,-500.0,0.00013821,2]
[398513723,1765770638798,-1000.0,0.00013821,2]
[398513724,1765770638807,-1000.0,0.00013821,2]
[398513725,1765770638817,-1000.0,0.00013821,2]
[398513726,1765770638826,-500.0,0.00013821,2]
[398513727,1765770638835,-1000.0,0.00013821,2]
[398513728,1765770638845,-500.0,0.00013821,2]
[398513729,1765770638854,-928.30213215,0.00013821,2]
[398513730,1765770638867,-71.69786785,0.00013821,2]
[398513731,1765770638877,-1000.0,0.00013821,2]
[398513732,1765770638890,-1000.0,0.00013821,2]
[398513733,1765770638900,-1000.0,0.00013821,2]
[398513734,1765770638910,-290.07080589,0.00013949,2]
[398513735,1765770638919,-157.37,0.00014,2]
[398513736,1765770638929,-154.4857071,0.00014095,2]
[398513737,1765770638939,-720.0,0.00014171,2]
[398513738,1765770638948,-1500.0,0.00014368,2]
[398513739,1765770638958,-492.68779205,0.00014368,2]
[398513740,1765770638968,-1500.0,0.00014368,2]
[398513741,1765770638977,-1500.0,0.00014368,2]
[398513742,1765770638990,-1500.0,0.00014368,2]
[398513743,1765770639000,-500.0,0.00014368,2]
[398513744,1765770639011,-1500.0,0.00014368,2]
[398513745,1765770639021,-269.44167863,0.00014368,2]
[398513746,1765770639032,-826.48,0.00014378,2]
[398513747,1765770639042,-1001.0,0.00014399,2]
[398513748,1765770639052,-857.0,0.00014399,2]
[398513749,1765770639062,-9856.7422273,0.00014419,2]
[398513750,1765770639072,-249.76282205,0.0001442,2]
[398513751,1765770639082,-160.0,0.0001474,2]
[398513752,1765770639093,-1426.66683821,0.00014916,2]
[398513753,1765770639103,-1000.0,0.00014916,2]
[398513754,1765770639112,-1000.0,0.00014916,2]
[398513755,1765770639122,-500.0,0.00014916,2]
[398513756,1765770639132,-1001.0,0.00014947,2]
[398513757,1765770639142,-929.79,0.00015177,2]
[398513758,1765770639152,-260.0,0.00015288,2]
[398513759,1765770639161,-290.3608767,0.0001545,2]
[398513760,1765770639172,-348.82985822,0.00015454,2]
[398513761,1765770639182,-864.0,0.00015588,2]
[398513762,1765770639191,-360.0,0.00015836,2]
[398513763,1765770639201,-1033.1,0.00015976,2]
[398513764,1765770639211,-460.0,0.00016384,2]
[398513765,1765770639222,-287.86223558,0.0001642,2]
[398513766,1765770639232,-323.7247505,0.00016511,2]
[398513767,1765770639242,-415.0,0.00016619,2]
[398513768,1765770639252,-271.65828195,0.00016837,2]
[398513769,1765770639261,-560.0,0.00016932,2]
[398513770,1765770639271,-1000.0,0.00017147,2]
[398513771,1765770639284,-660.0,0.0001748,2]
[398513772,1765770639294,-760.0,0.00018028,2]
[398513773,1765770639303,-325.96164911,0.0001842,2]
[398513774,1765770639312,-860.0,0.00018576,2]
[398513775,1765770639322,-1000.0,0.00018861,10]
[398513776,1765770639332,-244.0,0.00018861,10]
[398513777,1765770639341,-156.80201804,0.00019,2]
[398513778,1765770639350,-960.0,0.00019124,2]
[398513779,1765770639360,-179.87408814,0.00019223,2]
[398513780,1765770639369,-449.0,0.00019268,5]
[398513781,1765770639378,-415.0,0.00019619,2]
[398513782,1765770639387,-1060.0,0.00019672,2]
[398513783,1765770639397,-977.273868,0.00020187,2]
[398513784,1765770639406,-1160.0,0.00020219,2]
[398513785,1765770639415,-364.06106264,0.0002042,2]
[398513786,1765770639424,-159.0,0.00020521,3]
[398513787,1765770639440,-2164.11264712,0.00020638,2]
[398513788,1765770639449,-1000.0,0.00020748,10]
[398513789,1765770639459,-492.0,0.00020748,10]
[398513790,1765770639468,-1260.0,0.00020767,2]
[398513791,1765770639478,-283.0,0.00021015,2]
[398513792,1765770639487,-500.0,0.0002104,2]
[398513793,1765770639496,-2164.11264713,0.00021051,2]
[398513794,1765770639506,-3876.62126092,0.00021091,2]
[398513795,1765770639515,-306.38417791,0.00021185,2]
[398513796,1765770639524,-1360.0,0.00021315,2]
[398513797,1765770639533,-3444.01414221,0.00021818,2]
[398513798,1765770639545,-4920.02690815,0.00021818,2]
[398513799,1765770639557,-538.362,0.00021818,2]
[398513804,1765770639706,5000.0,0.0001242,2]
[398513823,1765770640887,-3e-08,0.00021818,2]
[398513824,1765770640946,-14436.7431375,0.00021818,2]
[398513829,1765770642939,-1233.0,0.00021818,10]
[398513830,1765770642948,-24163.46404668,0.00021818,2]
[398513848,1765770645865,-198.08824625,0.00016691,2]
[398513850,1765770645875,-182.2,0.00018018,2]
[398513852,1765770645884,-182.2,0.00021808,2]
[398513854,1765770645894,-38.51175374,0.00021818,10]
[398513856,1765770645905,-578.48824626,0.00021818,10]
[398513858,1765770645915,-5708.81733562,0.00021818,2]
[398513865,1765770665551,202.75052615,9.444e-05,2]
[398513866,1765770669241,500.0,0.00013273,2]
[398513867,1765770669371,500.0,0.00013273,2]
[398513868,1765770703642,150.0,8.602e-05,2]
[398513869,1765770704273,150.0,9.384e-05,2]
[398513870,1765770704684,150.0,0.00010166,2]
[398513871,1765770705340,181.89,0.00010948,2]
[398513872,1765770705564,227.37,0.0001173,2]
[398513873,1765770706068,272.84,0.00012512,2]
[398513874,1765770706484,318.31,0.00013294,2]
[398513875,1765770708579,500.0,0.0001263,2]
[398513876,1765770708606,500.0,0.0001263,2]
[398513877,1765770708635,500.0,0.0001263,2]
[398513878,1765770708675,156.66967847,0.0001263,2]
[398513879,1765770708703,500.0,0.0001263,2]
[398513880,1765770709495,500.0,0.0001263,2]
[398513881,1765770718831,500.0,0.0001263,2]
[398513882,1765770718862,500.0,0.0001263,2]
[398513883,1765770718892,356.80761075,0.0001263,2]
[398513884,1765770718921,488.66783995,0.0001263,2]
[398513885,1765770726852,500.0,0.00013273,2]
[398513886,1765770730823,500.0,0.0001263,2]
[398513887,1765770730871,418.58553793,0.0001263,2]
[398513888,1765770739503,182.27,0.00013273,2]
[398513889,1765770739548,500.0,0.00013273,2]
[398513890,1765770739884,500.0,0.00013273,2]
[398513891,1765770777455,150.0,7.231e-05,2]
[398513892,1765770777840,150.0,7.888e-05,2]
[398513893,1765770778263,150.0,8.546e-05,2]
[398513894,1765770778670,150.0,9.203e-05,2]
[398513895,1765770779588,150.0,9.86e-05,2]
[398513896,1765770780477,162.08,0.00010518,2]
[398513897,1765770780888,189.1,0.00011175,2]
[398513898,1765770781463,216.11,0.00011832,2]
[398513899,1765770781769,129.3093329,0.0001249,2]
[398513900,1765770781793,113.8106671,0.0001249,2]
[398513901,1765770782297,270.14,0.00013147,2]
[398513902,1765770786195,500.0,0.00013273,2]
[398513903,1765770843250,5000.0,0.00013598,2]
[398513904,1765770911285,150.0,7.13e-05,2]
[398513905,1765770911618,150.0,7.778e-05,2]
[398513906,1765770912102,150.0,8.427e-05,2]
[398513907,1765770912492,150.0,9.075e-05,2]
[398513908,1765770913077,150.0,9.723e-05,2]
[398513909,1765770968993,7068.0,0.00019,120]
[398513910,1765771051601,-155.79,0.000111,2]
[398513911,1765771051646,-155.78,0.000111,2]
[398513912,1765771060077,-762.0634486,0.00012064,2]
[398513913,1765771063580,-301.57010704,0.00012064,2]
[398513915,1765771083604,155.78,0.000111,2]
[398513916,1765771087742,-277.03866642,0.00012064,2]
[398513917,1765771102800,-222.96133358,0.00012064,2]
[398513918,1765771105881,150.0,8.519e-05,2]
[398513919,1765771170237,150.0,8.519e-05,2]
[398513920,1765771170637,150.0,9.293e-05,2]
[398513921,1765771171431,150.0,0.00010067,2]
[398513927,1765771364079,-5000.0,0.00011943,2]
[398513928,1765771384687,0.01,0.00011943,2]
[398513929,1765771384709,4999.99,0.00011943,2]
[398513930,1765771407195,5000.0,0.00011943,2]
[398513931,1765771414954,0.02,0.00011943,2]
[398513932,1765771414976,4999.98,0.00011943,2]
[398513933,1765771426744,150.0,8.534e-05,2]
[398513934,1765771427134,150.0,9.31e-05,2]
[398513935,1765771427548,150.0,0.00010086,2]
[398513936,1765771427948,150.0,0.00010861,2]
[398513937,1765771428381,181.49,0.00011637,2]
[398513938,1765771430378,4218.54,0.00011943,2]
[398513939,1765771430399,781.46,0.00011943,2]
[398513940,1765771438214,5000.0,0.00011943,2]
[398513941,1765771453389,4218.55,0.00011943,2]
[398513942,1765771453412,781.45,0.00011943,2]
[398513943,1765771461206,5000.0,0.00011943,2]
[398513944,1765771477426,4218.56,0.00011943,2]
[398513945,1765771477450,781.44,0.00011943,2]
[398513946,1765771500336,5000.0,0.00011943,2]
[398513947,1765771500464,150.0,8.524e-05,2]
[398513948,1765771501147,150.0,9.299e-05,2]
[398513949,1765771501423,150.0,0.00010074,2]
[398513950,1765771501871,177.8,0.00010849,2]
[398513951,1765771502275,222.25,0.00011623,2]
[398513952,1765771508147,3368.52,0.00011943,2]
[398513953,1765771508170,1631.48,0.00011943,2]
[398513954,1765771516252,5000.0,0.00011943,2]
[398513960,1765771524609,3368.53,0.00011943,2]
[398513961,1765771524633,1631.47,0.00011943,2]
[398513968,1765771532789,5000.0,0.00011943,2]
[398513971,1765771540460,3368.54,0.00011943,2]
[398513972,1765771540484,1631.46,0.00011943,2]
[398513977,1765771548947,5000.0,0.00011943,2]
[398513979,1765771557244,3368.55,0.00011943,2]
[398513980,1765771557267,1631.45,0.00011943,2]
[398513981,1765771565264,5000.0,0.00011943,2]
[398513982,1765771573102,3368.56,0.00011943,2]
[398513983,1765771573127,1631.44,0.00011943,2]
[398513984,1765771573355,150.0,7.128e-05,2]
[398513985,1765771573823,150.0,7.776e-05,2]
[398513986,1765771574188,150.0,8.423e-05,2]
[398513987,1765771574587,150.0,9.071e-05,2]
[398513988,1765771575007,168.15,9.719e-05,2]
[398513989,1765771575495,201.78,0.00010367,2]
[398513990,1765771575923,235.41,0.00011015,2]
[398513991,1765771576359,269.04,0.00011663,2]
[398513992,1765771581256,5000.0,0.00011943,2]
[398513993,1765771589074,1894.19,0.00011943,2]
[398513994,1765771589095,3105.81,0.00011943,2]
[398513995,1765771597727,5000.0,0.00011943,2]
[398513996,1765771605477,1894.2,0.00011943,2]
[398513997,1765771605502,2133.96341365,0.00011943,2]
[398513998,1765771614082,5000.0,0.00011943,2]
[398513999,1765771622377,150.55,0.000119,2]
[398514000,1765771622558,2715.49658635,0.00011943,2]
[398514001,1765771622581,2284.50341365,0.00011943,2]
[398514002,1765771630836,5000.0,0.00011943,2]
[398514003,1765771638559,2715.50658635,0.00011943,2]
[398514004,1765771638581,2284.49341365,0.00011943,2]
[398514005,1765771644216,150.0,8.463e-05,2]
[398514006,1765771644603,150.0,9.232e-05,2]
[398514007,1765771645005,150.0,0.00010001,2]
[398514008,1765771645433,150.0,0.00010771,2]
[398514009,1765771645832,180.0,0.0001154,2]
[398514010,1765771646649,5000.0,0.00011943,2]
[398514011,1765771669497,1935.51658635,0.00011943,2]
[398514012,1765771669519,3064.48341365,0.00011943,2]
[398514014,1765771677497,3280.60109871,0.00011943,2]
[398514015,1765771685355,-197.21175288,0.00012034,2]
[398514016,1765771685709,5000.0,0.00011943,2]
[398514017,1765771689311,151.5,0.000119,2]
[398514018,1765771689865,151.5,0.00012,2]
[398514019,1765771693336,4302.58649424,0.00012034,2]
[398514020,1765771693359,697.41350576,0.00012034,2]
[398514021,1765771708916,3031.86606293,0.00012034,2]
[398514022,1765771716996,5000.0,0.00012034,2]
[398514023,1765771717807,150.0,8.458e-05,2]
[398514024,1765771717845,1120.73043131,0.00011943,2]
[398514025,1765771717875,3300.46835834,0.00011943,2]
[398514026,1765771718229,150.0,9.227e-05,2]
[398514027,1765771718659,150.0,9.996e-05,2]
[398514028,1765771719066,150.0,0.00010765,2]
[398514029,1765771719494,170.67,0.00011534,2]
[398514030,1765771724707,5000.0,0.00012034,2]
[398514031,1765771740303,1078.87164166,0.00012034,2]
[398514032,1765771740325,3921.12835834,0.00012034,2]
[398514033,1765771748795,5000.0,0.00012034,2]
[398514034,1765771750928,151.63,0.00012,2]
[398514036,1765771764011,927.25164166,0.00012034,2]
[398514037,1765771764040,4072.74835834,0.00012034,2]
[398514038,1765771786326,5000.0,0.00012034,2]
[398514039,1765771791019,150.0,8.465e-05,2]
[398514040,1765771791459,150.0,9.234e-05,2]
[398514041,1765771791982,150.0,0.00010004,2]
[398514042,1765771792403,189.83,0.00010774,2]
[398514043,1765771792819,237.29,0.00011543,2]
[398514044,1765771809152,50.14164166,0.00012034,2]
[398514045,1765771809176,4949.85835834,0.00012034,2]
[398514046,1765771811820,152.44,0.00012,2]
[398514057,1765771831927,4897.71164166,0.00012034,2]
[398514059,1765771831953,102.28835834,0.00012034,2]
[398514074,1765771832130,-590.0,0.00012064,2]
[398514076,1765771832140,-111.54593758,0.000121,2]
[398514079,1765771832152,-40.89406242,0.000121,2]